fUSD/lending_fUSD_20240101
["ID","MTS","AMOUNT","RATE_DAILY","PERIOD"]
[309783694,1704117072449,-294.51798002,0.00039903,9]
[309783695,1704117072458,-150.0,0.00039909,2]
[309783696,1704117072468,-500.0,0.00039911,4]
[309783697,1704117072477,-150.0,0.00039919,2]
[309783698,1704117072487,-500.0,0.0003992,4]
[309783699,1704117072496,-300.0,0.00039925,2]
[309783700,1704117072506,-150.0,0.00039929,2]
[309783701,1704117072515,-500.0,0.00039929,4]
[309783702,1704117072525,-500.0,0.00039938,4]
[309783703,1704117072534,-150.0,0.0003994,2]
[309783704,1704117072544,-2000.0,0.00039944,2]
[309783705,1704117072554,-200.0,0.00039944,2]
[309783706,1704117072564,-150.0,0.00039944,2]
[309783707,1704117072573,-500.0,0.00039947,4]
[309783708,1704117072583,-150.0,0.00039953,2]
[309783709,1704117072593,-500.0,0.00039955,4]
[309783710,1704117072606,-500.0,0.00039964,4]
[309783711,1704117072615,-5132.56283437,0.00039968,13]
[309783712,1704117072624,-500.0,0.0003997,2]
[309783713,1704117072634,-402.78849859,0.0003997,2]
[309783714,1704117072643,-400.0,0.0003997,2]
[309783715,1704117072652,-400.0,0.0003997,2]
[309783716,1704117072662,-500.0,0.00039973,4]
[309783717,1704117072671,-150.0,0.00039973,2]
[309783718,1704117072680,-1500.0,0.00039981,2]
[309783719,1704117072690,-300.0,0.00039982,2]
[309783720,1704117072700,-438.84116106,0.00039987,2]
[309783721,1704117072709,-150.0,0.0003999,2]
[309783722,1704117072718,-4435.0,0.0003999,2]
[309783723,1704117072818,-169.36243946,0.00039993,2]
[309783724,1704117072828,-1422.36636923,0.00039995,2]
[309783725,1704117072837,-1174.09647581,0.00039995,4]
[309783726,1704117072846,-155.4018065,0.00039995,4]
[309783727,1704117072858,-155.0,0.00039995,4]
[309783728,1704117072868,-3313.84452798,0.00039995,4]
[309783729,1704117072877,-351.42462667,0.00039995,2]
[309783730,1704117072887,-155.000001,0.00039995,4]
[309783731,1704117072896,-223.63154649,0.00039995,4]
[309783732,1704117072905,-333.33333,0.00039998,8]
[309783733,1704117072915,-10730.3146562,0.00039999,2]
[309783734,1704117072924,-150.01,0.00039999,2]
[309783735,1704117072933,-3283.07032283,0.00039999,2]
[309783736,1704117072942,-298.7728289,0.0004,4]
[309783737,1704117072951,-3890.89891836,0.0004,3]
[309783738,1704117072961,-779.93308991,0.0004,4]
[309783739,1704117072971,-33687.00797237,0.0004,4]
[309783740,1704117072980,-2671.32874608,0.0004,4]
[309783741,1704117072989,-3322.88197843,0.0004,4]
[309783742,1704117072999,-155.0,0.0004,4]
[309783743,1704117073008,-1956.42492667,0.0004,4]
[309783744,1704117073018,-2263.56074827,0.0004,4]
[309783745,1704117073027,-1081.10657627,0.0004,4]
[309783746,1704117073036,-155.0,0.0004,4]
[309783747,1704117073045,-2000.0,0.0004,7]
[309783748,1704117073055,-1000.0,0.0004,10]
[309783749,1704117073065,-2424.78926863,0.0004,2]
[309783750,1704117073075,-1489.73376853,0.0004,4]
[309783751,1704117073084,-2057.97679126,0.0004,4]
[309783752,1704117073093,-1200.89727929,0.0004,4]
[309783753,1704117073104,-2362.91494231,0.0004,4]
[309783754,1704117073114,-54090.10111406,0.0004,4]
[309783755,1704117073124,-5937.60574647,0.0004,4]
[309783756,1704117073133,-759.65681004,0.0004,4]
[309783757,1704117073143,-2464.9820667,0.0004,4]
[309783758,1704117073153,-155.5377283,0.0004,4]
[309783759,1704117073162,-32500.0,0.0004,30]
[309783760,1704117073172,-2014.26,0.0004,2]
[309783761,1704117073182,-763.87,0.0004,2]
[309783762,1704117073191,-3000.0,0.0004,19]
[309783763,1704117073201,-200.0,0.0004,2]
[309783764,1704117073211,-638.97,0.0004,2]
[309783765,1704117073221,-1870.25,0.0004,2]
[309783766,1704117073231,-500.0,0.0004,2]
[309783767,1704117073240,-500.0,0.0004,2]
[309783768,1704117073250,-500.0,0.0004,2]
[309783769,1704117073260,-543.03,0.0004,2]
[309783770,1704117073269,-752.72,0.0004,2]
[309783771,1704117073279,-500.0,0.0004,2]
[309783772,1704117073288,-500.0,0.0004,2]
[309783773,1704117073298,-732.99,0.0004,2]
[309783774,1704117073307,-1348.23,0.0004,2]
[309783775,1704117073317,-301.4,0.0004,2]
[309783776,1704117073327,-500.0,0.0004,2]
[309783777,1704117073336,-500.0,0.0004,2]
[309783778,1704117073345,-500.0,0.0004,2]
[309783779,1704117073355,-1292.27,0.0004,2]
[309783780,1704117073364,-518.93,0.0004,2]
[309783781,1704117073373,-171.0,0.0004,14]
[309783782,1704117073382,-229.224196,0.00040001,2]
[309783783,1704117073392,-524.258077,0.00040001,2]
[309783784,1704117073401,-5812.8720416,0.00040003,2]
[309783785,1704117073410,-4415.0951144,0.00040003,2]
[309783786,1704117073419,-32304.7023672,0.00040003,2]
[309783787,1704117073429,-429.8210077,0.00040003,2]
[309783788,1704117073439,-133363.4867401,0.00040003,2]
[309783789,1704117073448,-9307.0078845,0.00040003,2]
[309783790,1704117073457,-3000.0,0.0004001,19]
[309783791,1704117073467,-3000.0,0.0004002,19]
[309783792,1704117073477,-3000.0,0.0004003,19]
[309783793,1704117073486,-3000.0,0.0004004,19]
[309783794,1704117073495,-17315.07250601,0.00040049,6]
[309783795,1704117073504,-3000.0,0.0004005,19]
[309783796,1704117073513,-3000.0,0.0004006,19]
[309783797,1704117073523,-150.72,0.00040068,2]
[309783798,1704117073532,-3000.0,0.0004007,19]
[309783799,1704117073542,-3000.0,0.0004008,19]
[309783800,1704117073551,-3000.0,0.0004009,19]
[309783801,1704117073561,-333.33333,0.00040098,8]
[309783802,1704117073571,-153.92,0.000401,2]
[309783803,1704117073582,-3000.0,0.000401,19]
[309783804,1704117073591,-3000.0,0.0004011,19]
[309783805,1704117073603,-3000.0,0.0004012,19]
[309783806,1704117073612,-3000.0,0.0004013,19]
[309783807,1704117073622,-3000.0,0.0004014,19]
[309783808,1704117073631,-3000.0,0.0004015,19]
[309783809,1704117073641,-3000.0,0.0004016,19]
[309783810,1704117073651,-3000.0,0.0004017,19]
[309783811,1704117073660,-3251.05980563,0.00040176,2]
[309783812,1704117073669,-3000.0,0.0004018,19]
[309783813,1704117073679,-205.0,0.00040182,25]
[309783814,1704117073689,-3000.0,0.0004019,19]
[309783815,1704117073698,-333.33333,0.00040198,8]
[309783816,1704117073708,-3000.0,0.000402,20]
[309783817,1704117073717,-5990.662256,0.0004021,20]
[309783818,1704117073727,-763.87,0.00040273,2]
[309783819,1704117073736,-638.97,0.00040273,2]
[309783820,1704117073745,-1870.25,0.00040273,2]
[309783821,1704117073755,-500.0,0.00040273,2]
[309783822,1704117073765,-500.0,0.00040273,2]
[309783823,1704117073775,-500.0,0.00040273,2]
[309783824,1704117073785,-543.03,0.00040273,2]
[309783825,1704117073794,-752.72,0.00040273,2]
[309783826,1704117073803,-500.0,0.00040273,2]
[309783827,1704117073813,-500.0,0.00040273,2]
[309783828,1704117073822,-732.99,0.00040273,2]
[309783829,1704117073831,-1348.23,0.00040273,2]
[309783830,1704117073841,-500.0,0.00040273,2]
[309783831,1704117073850,-492.47897402,0.00040273,2]
[309783832,1704117073860,-239.59,0.00040273,2]
[309783833,1704117073870,-1292.27,0.00040273,2]
[309783834,1704117073879,-518.93,0.00040273,2]
[309783835,1704117073892,-333.33333,0.00040298,8]
[309783836,1704117073902,-2042.0,0.00040333,10]
[309783837,1704117073911,-2000.0,0.00040343,2]
[309783838,1704117073927,-200.0,0.00040343,2]
[309783839,1704117073936,-333.33333,0.00040398,8]
[309783840,1704117073948,-500.0,0.00040481,2]
[309783841,1704117073960,-333.33333,0.00040498,8]
[309783842,1704117073970,-763.87,0.00040547,2]
[309783843,1704117073980,-638.97,0.00040547,2]
[309783844,1704117073991,-1870.25,0.00040547,2]
[309783845,1704117074001,-533.49,0.00040547,2]
[309783846,1704117074011,-500.0,0.00040547,2]
[309783847,1704117074020,-500.0,0.00040547,2]
[309783848,1704117074030,-543.03,0.00040547,2]
[309783849,1704117074039,-752.72,0.00040547,2]
[309783850,1704117074048,-500.0,0.00040547,2]
[309783851,1704117074066,-500.0,0.00040547,2]
[309783852,1704117074076,-732.99,0.00040547,2]
[309783853,1704117074085,-1348.23,0.00040547,2]
[309783854,1704117074108,-500.0,0.00040547,2]
[309783855,1704117074118,-1292.27,0.00040547,2]
[309783856,1704117074128,-518.93,0.00040547,2]
[309783857,1704117074139,-333.33333,0.00040598,8]
[309783858,1704117074149,-17315.07250601,0.00040698,7]
[309783859,1704117074160,-333.33333,0.00040698,8]
[309783860,1704117074171,-500.0,0.00040712,7]
[309783861,1704117074181,-2000.0,0.00040747,2]
[309783862,1704117074191,-333.33333,0.00040798,8]
[309783863,1704117074200,-763.87,0.00040821,2]
[309783864,1704117074209,-638.97,0.00040821,2]
[309783865,1704117074221,-1870.25,0.00040821,2]
[309783866,1704117074230,-500.0,0.00040821,2]
[309783867,1704117074246,-500.0,0.00040821,2]
[309783868,1704117074255,-543.03,0.00040821,2]
[309783869,1704117074265,-752.72,0.00040821,2]
[309783870,1704117074275,-500.0,0.00040821,2]
[309783871,1704117074284,-250.6669399,0.00040821,2]
[309783872,1704117074293,-732.99,0.00040821,2]
[309783873,1704117074303,-1348.23,0.00040821,2]
[309783874,1704117074312,-150.09,0.00040821,2]
[309783875,1704117074321,-1292.27,0.00040821,2]
[309783876,1704117074331,-518.93,0.00040821,2]
[309783877,1704117074354,-1000.0,0.00040823,2]
[309783878,1704117074364,-758.0,0.00040877,2]
[309783879,1704117074373,-58000.0,0.0004088,5]
[309783880,1704117074383,-58000.0,0.0004088,5]
[309783881,1704117074393,-58000.0,0.00040889,5]
[309783882,1704117074402,-58000.0,0.00040889,5]
[309783883,1704117074411,-333.33333,0.00040898,8]
[309783884,1704117074420,-559049.086,0.000409,6]
[309783885,1704117074430,-161.25,0.000409,7]
[309783886,1704117074439,-500.0,0.00040928,2]
[309783887,1704117074448,-500.0,0.00040928,2]
[309783888,1704117074542,-500.0,0.00040928,2]
[309783889,1704117074551,-417.7412757,0.00040928,2]
[309783890,1704117074561,-58000.0,0.0004093,5]
[309783891,1704117074570,-58000.0,0.00040939,5]
[309783892,1704117074582,-400.0,0.0004097,3]
[309783893,1704117074592,-296.44407207,0.0004097,30]
[309783894,1704117074600,-547.05239371,0.0004097,30]
[309783895,1704117074611,-171.59487388,0.0004097,30]
[309783896,1704117074620,-637.89123315,0.0004097,30]
[309783897,1704117074630,-858.6717369,0.0004097,30]
[309783898,1704117074639,-500.0,0.00040987,31]
[309783899,1704117074649,-3779.0,0.0004099,2]
[309783900,1704117074658,-333.33333,0.00040998,8]
[309783901,1704117074667,-2479.4757245,0.00041,4]
[309783902,1704117074677,-448.92,0.00041,10]
[309783903,1704117074686,-196.19729858,0.00041,23]
[309783904,1704117074695,-20329.804676,0.00041,10]
[309783905,1704117074704,-156.84,0.00041,4]
[309783906,1704117074714,-156.84,0.00041,4]
[309783907,1704117074723,-156.84,0.00041,4]
[309783908,1704117074733,-156.84,0.00041,4]
[309783909,1704117074742,-156.84,0.00041,4]
[309783910,1704117074751,-156.84,0.00041,4]
[309783911,1704117074761,-171.0,0.0004102,2]
[309783912,1704117074770,-1014.23600758,0.00041095,2]
[309783913,1704117074780,-500.0,0.00041095,20]
[309783914,1704117074790,-295.97,0.00041095,20]
[309783915,1704117074799,-763.87,0.00041095,2]
[309783916,1704117074809,-519.52548717,0.00041095,30]
[309783917,1704117074818,-638.97,0.00041095,2]
[309783918,1704117074828,-1870.25,0.00041095,2]
[309783919,1704117074838,-187.7561556,0.00041095,2]
[309783920,1704117074847,-588.0,0.00041095,2]
[309783921,1704117074857,-588.0,0.00041095,2]
[309783922,1704117074867,-500.0,0.00041095,2]
[309783923,1704117074877,-588.0,0.00041095,2]
[309783924,1704117074886,-588.0,0.00041095,2]
[309783925,1704117074896,-543.03,0.00041095,2]
[309783926,1704117074905,-588.0,0.00041095,2]
[309783927,1704117074913,-588.0,0.00041095,2]
[309783928,1704117074923,-588.0,0.00041095,2]
[309783929,1704117074932,-588.0,0.00041095,2]
[309783930,1704117074941,-588.0,0.00041095,2]
[309783931,1704117074951,-276.63485911,0.00041095,2]
[309783932,1704117074961,-500.0,0.00041095,2]
[309783933,1704117074970,-500.0,0.00041095,2]
[309783934,1704117074980,-500.0,0.00041095,2]
[309783935,1704117074989,-500.0,0.00041095,2]
[309783936,1704117074999,-500.0,0.00041095,2]
[309783937,1704117075008,-752.72,0.00041095,2]
[309783938,1704117075019,-500.0,0.00041095,2]
[309783939,1704117075029,-500.0,0.00041095,2]
[309783940,1704117075038,-500.0,0.00041095,2]
[309783941,1704117075048,-500.0,0.00041095,2]
[309783942,1704117075057,-500.0,0.00041095,2]
[309783943,1704117075067,-500.0,0.00041095,2]
[309783944,1704117075077,-500.0,0.00041095,2]
[309783945,1704117075086,-500.0,0.00041095,2]
[309783946,1704117075096,-500.0,0.00041095,2]
[309783947,1704117075106,-500.0,0.00041095,2]
[309783948,1704117075117,-500.0,0.00041095,2]
[309783949,1704117075126,-500.0,0.00041095,2]
[309783950,1704117075135,-173.23650578,0.00041095,2]
[309783951,1704117075144,-500.0,0.00041095,2]
[309783952,1704117075154,-732.99,0.00041095,2]
[309783953,1704117075163,-6776.09,0.00041095,10]
[309783954,1704117075172,-1348.23,0.00041095,2]
[309783955,1704117075182,-1292.27,0.00041095,2]
[309783956,1704117075192,-518.93,0.00041095,2]
[309783957,1704117075201,-500.0,0.00041096,4]
[309783958,1704117075210,-500.0,0.00041096,4]
[309783959,1704117075220,-500.0,0.00041096,4]
[309783960,1704117075229,-500.0,0.00041096,4]
[309783961,1704117075238,-500.0,0.00041096,4]
[309783962,1704117075247,-508.0,0.00041096,4]
[309783963,1704117075257,-161.43,0.00041096,2]
[309783964,1704117075266,-180.0,0.00041096,2]
[309783965,1704117075275,-5393.0,0.00041096,20]
[309783966,1704117075285,-367.82958462,0.00041096,18]
[309783967,1704117075295,-153.92,0.00041096,2]
[309783968,1704117075304,-333.33333,0.00041098,8]
[309783969,1704117075313,-8000.0,0.000411,5]
[309783970,1704117075322,-333.33333,0.00041198,8]
[309783971,1704117075332,-3000.0,0.0004122,8]
[309783972,1704117075341,-501.33562406,0.00041233,5]
[309783973,1704117075351,-2014.26,0.00041295,2]
[309783974,1704117075361,-333.33333,0.00041298,8]
[309783975,1704117075371,-17389.0,0.000413,5]
[309783976,1704117075380,-17315.07250601,0.00041346,9]
[309783977,1704117075389,-229.9287798,0.00041346,2]
[309783978,1704117075398,-763.87,0.00041369,2]
[309783979,1704117075407,-638.97,0.00041369,2]
[309783980,1704117075417,-1870.25,0.00041369,2]
[309783981,1704117075426,-500.0,0.00041369,2]
[309783982,1704117075435,-543.03,0.00041369,2]
[309783983,1704117075444,-752.72,0.00041369,2]
[309783984,1704117075454,-500.0,0.00041369,2]
[309783985,1704117075463,-732.99,0.00041369,2]
[309783986,1704117075472,-1348.23,0.00041369,2]
[309783987,1704117075481,-1292.27,0.00041369,2]
[309783988,1704117075491,-518.93,0.00041369,2]
[309783989,1704117075500,-301.4,0.0004139,2]
[309783990,1704117075509,-333.33333,0.00041398,8]
[309783991,1704117075519,-333.33333,0.00041398,8]
[309783992,1704117075529,-167.0,0.00041458,2]
[309783993,1704117075538,-333.33333,0.00041498,8]
[309783994,1704117075547,-263.01182442,0.00041522,4]
[309783995,1704117075556,-333.33333,0.00041598,8]
[309783996,1704117075565,-763.87,0.00041643,2]
[309783997,1704117075575,-638.97,0.00041643,2]
[309783998,1704117075587,-1870.25,0.00041643,2]
[309783999,1704117075596,-518.51,0.00041643,2]
[309784000,1704117075605,-543.03,0.00041643,2]
[309784001,1704117075615,-752.72,0.00041643,2]
[309784002,1704117075624,-500.0,0.00041643,2]
[309784003,1704117075633,-732.99,0.00041643,2]
[309784004,1704117075642,-1348.23,0.00041643,2]
[309784005,1704117075651,-1292.27,0.00041643,2]
[309784006,1704117075660,-518.93,0.00041643,2]
[309784007,1704117075669,-333.33333,0.00041698,8]
[309784008,1704117075680,-847.990378,0.0004176,5]
[309784009,1704117075689,-500.0,0.0004178,5]
[309784010,1704117075698,-333.33333,0.00041798,10]
[309784011,1704117075707,-500.0,0.000418,5]
[309784012,1704117075716,-500.0,0.0004182,5]
[309784013,1704117075725,-500.0,0.0004184,5]
[309784014,1704117075734,-500.0,0.0004186,6]
[309784015,1704117075743,-500.0,0.0004188,6]
[309784016,1704117075753,-333.33333,0.00041898,8]
[309784017,1704117075761,-500.0,0.000419,6]
[309784018,1704117075771,-763.94292239,0.00041917,2]
[309784019,1704117075782,-639.0,0.00041917,2]
[309784020,1704117075792,-1870.4,0.00041917,2]
[309784021,1704117075801,-543.08,0.00041917,2]
[309784022,1704117075810,-752.73240072,0.00041917,2]
[309784023,1704117075820,-221.66,0.00041917,2]
[309784024,1704117075829,-733.02,0.00041917,2]
[309784025,1704117075838,-1348.31,0.00041917,2]
[309784026,1704117075847,-1292.29755392,0.00041917,2]
[309784027,1704117075857,-518.98,0.00041917,2]
[309784028,1704117075867,-500.0,0.0004192,6]
[309784029,1704117075877,-500.0,0.0004194,6]
[309784030,1704117075886,-500.0,0.0004196,6]
[309784031,1704117075896,-443.04,0.00041967,2]
[309784032,1704117075907,-500.0,0.0004198,6]
[309784033,1704117075917,-500.0,0.00041987,33]
[309784034,1704117075926,-17315.07250601,0.00041995,11]
[309784035,1704117075936,-333.33333,0.00041998,10]
[309784036,1704117075946,-5222.85792211,0.00042,7]
[309784037,1704117075955,-20000.0,0.00042,11]
[309784038,1704117075964,-500.0,0.00042,10]
[309784039,1704117075973,-500.0,0.00042,10]
[309784040,1704117075983,-500.0,0.00042,10]
[309784041,1704117076075,-500.0,0.00042,10]
[309784042,1704117076085,-500.0,0.00042,10]
[309784043,1704117076094,-500.0,0.00042,10]
[309784044,1704117076104,-500.0,0.00042,10]
[309784045,1704117076114,-500.0,0.00042,10]
[309784046,1704117076124,-1000.0,0.00042,120]
[309784047,1704117076133,-500.0,0.00042,6]
[309784048,1704117076143,-485.18,0.00042,120]
[309784049,1704117076152,-333.33333,0.00042098,8]
[309784050,1704117076162,-333.33333,0.00042198,10]
[309784051,1704117076171,-972.0,0.000422,2]
[309784052,1704117076181,-172.0,0.00042288,90]
[309784053,1704117076190,-150.72,0.00042295,2]
[309784054,1704117076199,-333.33333,0.00042298,8]
[309784055,1704117076209,-333.33333,0.00042398,10]
[309784056,1704117076219,-1000.0,0.00042451,15]
[309784057,1704117076232,-450.0,0.00042455,2]
[309784058,1704117076242,-500.0,0.00042455,2]
[309784059,1704117076251,-500.0,0.00042455,2]
[309784060,1704117076260,-500.0,0.00042455,2]
[309784061,1704117076269,-500.0,0.00042455,2]
[309784062,1704117076278,-500.0,0.00042455,2]
[309784063,1704117076287,-500.0,0.00042455,2]
[309784064,1704117076296,-500.0,0.00042455,2]
[309784065,1704117076305,-500.0,0.00042455,2]
[309784066,1704117076314,-500.0,0.00042455,2]
[309784067,1704117076324,-500.0,0.00042455,2]
[309784068,1704117076333,-450.0,0.00042455,2]
[309784069,1704117076345,-500.0,0.00042455,2]
[309784070,1704117076358,-500.0,0.00042455,2]
[309784071,1704117076368,-500.0,0.00042455,2]
[309784072,1704117076377,-500.0,0.00042455,2]
[309784073,1704117076387,-500.0,0.00042455,2]
[309784074,1704117076396,-500.0,0.00042455,2]
[309784075,1704117076406,-500.0,0.00042455,2]
[309784076,1704117076415,-500.0,0.00042455,2]
[309784077,1704117076430,-500.0,0.00042455,2]
[309784078,1704117076439,-500.0,0.00042455,2]
[309784079,1704117076448,-500.0,0.00042455,2]
[309784080,1704117076457,-500.0,0.00042455,2]
[309784081,1704117076466,-500.0,0.00042455,2]
[309784082,1704117076475,-500.0,0.00042455,2]
[309784083,1704117076484,-500.0,0.00042455,2]
[309784084,1704117076501,-500.0,0.00042455,2]
[309784085,1704117076512,-500.0,0.00042455,2]
[309784086,1704117076521,-500.0,0.00042455,2]
[309784087,1704117076532,-500.0,0.00042455,2]
[309784088,1704117076541,-500.0,0.00042455,2]
[309784089,1704117076549,-500.0,0.00042455,2]
[309784090,1704117076559,-500.0,0.00042455,2]
[309784091,1704117076568,-500.0,0.00042455,2]
[309784092,1704117076579,-2042.0,0.00042456,10]
[309784093,1704117076590,-500.0,0.00042465,2]
[309784094,1704117076599,-500.0,0.00042465,2]
[309784095,1704117076609,-500.0,0.00042465,2]
[309784096,1704117076618,-500.0,0.00042465,2]
[309784097,1704117076627,-500.0,0.00042465,2]
[309784098,1704117076636,-500.0,0.00042465,2]
[309784099,1704117076646,-500.0,0.00042465,2]
[309784100,1704117076655,-500.0,0.00042465,2]
[309784101,1704117076665,-500.0,0.00042465,2]
[309784102,1704117076675,-500.0,0.00042465,2]
[309784103,1704117076683,-500.0,0.00042465,2]
[309784104,1704117076693,-500.0,0.00042465,2]
[309784105,1704117076702,-500.0,0.00042465,2]
[309784106,1704117076712,-500.0,0.00042465,2]
[309784107,1704117076721,-500.0,0.00042465,2]
[309784108,1704117076730,-646.19148239,0.00042465,2]
[309784109,1704117076741,-333.33333,0.00042498,8]
[309784110,1704117076750,-379.21498452,0.000425,4]
[309784111,1704117076759,-1000.30828425,0.000425,10]
[309784112,1704117076768,-174.44539591,0.000425,2]
[309784113,1704117076780,-8000.0,0.000425,5]
[309784114,1704117076790,-2014.26,0.0004259,2]
[309784115,1704117076799,-150.0,0.00042595,2]
[309784116,1704117076809,-2666.597,0.00042595,2]
[309784117,1704117076819,-333.33333,0.00042598,10]
[309784118,1704117076828,-1000.0,0.000426,2]
[309784119,1704117076837,-5000.0,0.00042641,6]
[309784120,1704117076846,-5000.0,0.00042641,11]
[309784121,1704117076856,-17315.07250601,0.00042644,12]
[309784122,1704117076867,-333.33333,0.00042698,8]
[309784123,1704117076877,-171.0,0.00042735,2]
[309784124,1704117076886,-301.4,0.0004278,2]
[309784125,1704117076896,-333.33333,0.00042798,10]
[309784126,1704117076905,-333.33333,0.00042898,8]
[309784127,1704117076915,-256.6898037,0.000429,120]
[309784128,1704117076926,-501.33562406,0.000429,5]
[309784129,1704117076935,-500.0,0.00042987,35]
[309784130,1704117076945,-333.33333,0.00042998,10]
[309784131,1704117076954,-14823.91995777,0.00043,10]
[309784132,1704117076965,-500.0,0.00043,30]
[309784133,1704117076975,-150.0,0.00043,25]
[309784134,1704117076984,-2896.69,0.00043,15]
[309784135,1704117076994,-72257.0,0.00043,2]
[309784136,1704117077003,-209.75105692,0.00043,2]
[309784137,1704117077013,-1357.0,0.00043,2]
[309784138,1704117077022,-333.33333,0.00043098,8]
[309784139,1704117077032,-333.33333,0.00043198,10]
[309784140,1704117077041,-156.84,0.000432,4]
[309784141,1704117077050,-156.84,0.000432,4]
[309784142,1704117077059,-156.84,0.000432,4]
[309784143,1704117077069,-156.84,0.000432,4]
[309784144,1704117077078,-156.84,0.000432,4]
[309784145,1704117077087,-156.84,0.000432,4]
[309784146,1704117077098,-808.0,0.00043205,2]
[309784147,1704117077110,-17315.07250601,0.00043293,14]
[309784148,1704117077119,-333.33333,0.00043298,8]
[309784149,1704117077129,-128093.40381571,0.000433,15]
[309784150,1704117077138,-333.33333,0.00043398,10]
[309784151,1704117077148,-205.0,0.00043485,31]
[309784152,1704117077157,-333.33333,0.00043498,8]
[309784153,1704117077167,-20000.0,0.000435,9]
[309784154,1704117077176,-589.19785482,0.00043562,14]
[309784155,1704117077186,-333.33333,0.00043598,10]
[309784156,1704117077195,-1000.0,0.000436,2]
[309784157,1704117077204,-2000.0,0.000436,2]
[309784158,1704117077214,-1660.59828363,0.00043669,15]
[309784159,1704117077223,-259.74607972,0.00043669,15]
[309784160,1704117077233,-186.60133291,0.00043669,15]
[309784161,1704117077243,-1000.0,0.00043669,15]
[309784162,1704117077252,-450.79836816,0.00043669,15]
[309784163,1704117077262,-150.55498548,0.00043669,15]
[309784164,1704117077271,-287.83056107,0.00043669,15]
[309784165,1704117077280,-1183.66108568,0.00043669,15]
[309784166,1704117077289,-9293.89981718,0.00043693,9]
[309784167,1704117077298,-333.33333,0.00043698,8]
[309784168,1704117077308,-177000.0,0.000437,11]
[309784169,1704117077317,-4719.3943854,0.00043738,2]
[309784170,1704117077326,-1809.02027731,0.00043751,15]
[309784171,1704117077336,-5443.41,0.0004377,7]
[309784172,1704117077345,-5443.41,0.0004377,7]
[309784173,1704117077354,-5443.41,0.0004377,7]
[309784174,1704117077364,-5443.41,0.0004377,7]
[309784175,1704117077373,-5267.33995973,0.00043797,15]
[309784176,1704117077382,-933.85132507,0.00043798,4]
[309784177,1704117077391,-333.33333,0.00043798,10]
[309784178,1704117077401,-8000.0,0.000438,5]
[309784179,1704117077409,-937.19,0.00043808,2]
[309784180,1704117077419,-399.99,0.00043808,2]
[309784181,1704117077428,-937.19,0.00043808,2]
[309784182,1704117077516,-937.19,0.00043808,2]
[309784183,1704117077526,-399.99,0.00043808,2]
[309784184,1704117077535,-937.19,0.00043808,2]
[309784185,1704117077544,-399.99,0.00043808,2]
[309784186,1704117077555,-399.99,0.00043808,2]
[309784187,1704117077564,-399.99,0.00043808,2]
[309784188,1704117077573,-250.0,0.00043835,10]
[309784189,1704117077586,-5000.0,0.00043885,30]
[309784190,1704117077595,-2014.26,0.00043885,2]
[309784191,1704117077605,-333.33333,0.00043898,8]
[309784192,1704117077616,-17315.07250601,0.00043941,15]
[309784193,1704117077627,-3585.549828,0.0004397,2]